bitfinex/quotes_SOLUSD_20241029
["timestamp","ask_amount","ask_price","bid_price","bid_amount"]
[1730241626928,5.5679,179.6,179.49,23.776884]
[1730241627806,5.78352581,179.62,179.49,23.776884]
[1730241628011,5.5676,179.61,179.5,19.4985]
[1730241638647,19.4866,179.61,179.5,19.4985]
[1730241644024,5.78352581,179.62,179.55,10.72317043]
[1730241644228,22.7651,179.69,179.57,23.776884]
[1730241644229,5.566,179.66,179.57,23.776884]
[1730241644531,5.5654,179.68,179.58,15.4056]
[1730241645639,5.5654,179.68,179.59,19.4887]
[1730241653648,19.479,179.68,179.59,19.4887]
[1730241654957,5.5654,179.68,179.59,19.4887]
[1730241659645,19.479,179.68,179.59,19.4887]
[1730241660668,5.5654,179.68,179.59,19.4887]
[1730241661174,5.5645,179.71,179.6,34.50005443]
[1730241661471,5.5645,179.71,179.6,23.776884]
[1730241661843,5.5645,179.71,179.62,23.776884]
[1730241662062,5.5645,179.71,179.6,23.776884]
[1730241662271,21.9332,179.73,179.62,34.50005443]
[1730241662546,19.4692,179.77,179.64,19.4833]
[1730241663363,19.4692,179.77,179.64,47.3167]
[1730241664378,19.4692,179.77,179.64,19.4833]
[1730241679979,5.5626,179.77,179.65,23.776884]
[1730241680154,5.5626,179.77,179.65,34.50005443]
[1730241680569,22.61067055,179.82,179.68,31.92967043]
[1730241680774,21.6471612,179.82,179.69,34.50005443]
[1730241680981,29.7617,179.86,179.69,34.50005443]
[1730241681159,35.54694496,179.86,179.69,23.776884]
[1730241681355,6.0491033,179.79,179.69,23.776884]
[1730241681771,6.0491033,179.79,179.68,21.2065]
[1730241681981,19.9542033,179.79,179.68,21.2065]
[1730241682180,19.9542033,179.79,179.69,5.5651]
[1730241682565,19.9542033,179.79,179.68,35.1197]
[1730241683458,19.9542033,179.79,179.68,40.6851]
[1730241685794,6.0491033,179.79,179.69,23.776884]
[1730241686768,6.0491033,179.79,179.7,19.4768]
[1730241688100,0.4869033,179.79,179.7,47.3009]
[1730241688400,6.0489033,179.79,179.71,23.776884]
[1730241688605,0.4869033,179.79,179.71,23.776884]
[1730241688770,0.4869033,179.79,179.73,23.776884]
[1730241690294,0.4869033,179.79,179.74,19.4724]
[1730241694494,6.0491033,179.79,179.74,19.4724]
[1730241699578,6.0491033,179.79,179.74,13.9089]
[1730241706888,6.0491033,179.79,179.72,28.0324]
[1730241708294,0.4869033,179.79,179.72,41.9429]
[1730241708506,6.0491033,179.79,179.72,41.9429]
[1730241709014,19.9542033,179.79,179.71,23.776884]
[1730241709508,19.9542033,179.79,179.7,5.5645]
[1730241709714,15.9674,179.78,179.69,13.9127]
[1730241709894,15.9674,179.78,179.68,27.8622]
[1730241710099,25.5672,179.77,179.65,5.5662]
[1730241711389,25.5672,179.77,179.65,19.4821]
[1730241716207,25.5672,179.77,179.66,23.776884]
[1730241717119,25.5672,179.77,179.67,19.48]
[1730241719107,5.5626,179.77,179.68,23.776884]
[1730241719724,5.5626,179.77,179.67,19.48]
[1730241720224,19.4692,179.77,179.67,19.48]
[1730241720743,19.4692,179.77,179.67,13.9143]
[1730241721904,5.5626,179.77,179.67,13.9143]
[1730241722106,5.5626,179.77,179.68,23.776884]
[1730241722908,5.5626,179.77,179.69,19.4779]
[1730241723529,5.5626,179.77,179.69,45.20197043]
[1730241724229,5.5623,179.78,179.69,45.20197043]
[1730241725215,5.5623,179.78,179.69,34.4788]
[1730241726428,5.5623,179.78,179.69,45.20197043]
[1730241726627,5.5623,179.78,179.71,19.4758]
[1730241728213,5.5623,179.78,179.71,13.9113]
[1730241729537,5.5623,179.78,179.71,19.4758]
[1730241730109,0.4869033,179.79,179.71,19.4758]
[1730241730317,6.0489033,179.79,179.71,19.4758]
[1730241730646,0.4869033,179.79,179.72,23.776884]
[1730241730826,0.4869033,179.79,179.72,34.50005443]
[1730241731733,0.4869033,179.79,179.74,23.776884]
[1730241732150,0.4869033,179.79,179.74,34.50005443]
[1730241732655,0.4869033,179.79,179.77,10.72317043]
[1730241733024,0.4869033,179.79,179.78,34.50005443]
[1730241733254,0.4869033,179.79,179.78,54.50005443]
[1730241733546,0.4869033,179.79,179.78,60.06235443]
[1730241735629,0.4869033,179.79,179.78,60.18784443]
[1730241736246,0.4869033,179.79,179.78,60.41333443]
[1730241736631,5.5579,179.93,179.8,23.876884]
[1730241736836,16.1879,179.95,179.83,10.72317043]
[1730241737136,21.7452,179.95,179.84,10.72317043]
[1730241737438,21.7452,179.95,179.85,23.776884]
[1730241737637,21.7452,179.95,179.86,19.4594]
[1730241737822,21.7452,179.95,179.87,23.776884]
[1730241738330,6.1600377,179.96,179.86,19.4594]
[1730241739239,20.0519377,179.96,179.86,19.4594]
[1730241739546,20.0519377,179.96,179.83,13.9019]
[1730241739769,16.1879,179.95,179.83,13.9019]
[1730241740752,5.5574,179.94,179.83,13.9019]
[1730241742427,23.776884,179.93,179.82,5.5611]
[1730241742838,5.558,179.92,179.8,19.4659]
[1730241743547,5.5576,179.94,179.83,10.72317043]
[1730241743848,5.5576,179.94,179.83,23.776884]
[1730241744434,19.4511,179.94,179.81,20.0]
[1730241744630,19.4511,179.94,179.8,19.4659]
[1730241744833,19.4511,179.94,179.8,23.776884]
[1730241745359,16.1879,179.91,179.75,22.2525]
[1730241745650,16.1879,179.91,179.75,32.97567043]
[1730241746034,16.1879,179.91,179.75,22.2525]
[1730241746445,19.4552,179.9,179.75,22.2525]
[1730241746760,5.5586,179.9,179.77,10.72317043]
[1730241746957,5.5586,179.9,179.78,23.776884]
[1730241748464,5.5586,179.9,179.77,23.776884]
[1730241748834,19.4552,179.9,179.75,22.2525]
[1730241749241,16.656,179.88,179.71,15.3008]
[1730241749437,6.5677,179.87,179.72,20.0]
[1730241749648,6.5677,179.87,179.73,10.72317043]
[1730241749942,6.5677,179.87,179.74,20.0]
[1730241750357,5.5598,179.86,179.74,20.0]
[1730241751335,5.5598,179.86,179.75,23.776884]
[1730241753265,19.4594,179.86,179.73,23.776884]
[1730241753452,23.776884,179.85,179.72,20.0]
[1730241753965,19.4594,179.86,179.72,16.71428098]
[1730241754261,19.4594,179.86,179.71,32.01508098]
[1730241754464,19.4594,179.86,179.71,15.3008]
[1730241754869,19.4594,179.86,179.72,23.776884]
[1730241756962,19.4594,179.86,179.72,40.49116498]
[1730241757167,19.4594,179.86,179.72,23.776884]
[1730241760868,23.776884,179.85,179.71,15.3008]
[1730241761361,23.776884,179.85,179.71,32.01508098]
[1730241761979,5.5604,179.84,179.71,15.3008]
[1730241763594,19.4616,179.84,179.71,15.3008]
[1730241770993,19.4616,179.84,179.71,32.01508098]
[1730241771881,19.4616,179.84,179.71,15.3008]
[1730241774498,16.6618,179.83,179.71,15.3008]
[1730241774702,16.6618,179.83,179.7,6.3112]
[1730241775985,5.5611,179.82,179.7,6.3112]
[1730241779924,6.5373,179.81,179.67,15.1837]
[1730241780231,6.5373,179.81,179.68,10.70062871]
[1730241780995,6.5373,179.81,179.67,25.88432871]
[1730241781218,5.5617,179.8,179.67,25.88432871]
[1730241781410,5.5617,179.8,179.68,23.776884]
[1730241784614,5.5617,179.8,179.69,10.70062871]
[1730241784921,5.5617,179.8,179.68,34.47751271]
[1730241787124,5.5617,179.8,179.68,23.776884]
[1730241787329,5.5617,179.8,179.68,34.47751271]
[1730241788199,5.5617,179.8,179.68,23.776884]
[1730241788913,5.5617,179.8,179.7,10.70062871]
[1730241789117,5.5617,179.8,179.72,10.70062871]
[1730241789616,5.5617,179.8,179.71,10.70062871]
[1730241790498,5.5617,179.8,179.72,10.70062871]
[1730241790722,5.5613,179.82,179.73,10.70062871]
[1730241791096,5.5613,179.82,179.74,10.70062871]
[1730241792213,5.5613,179.82,179.73,33.70202871]
[1730241793128,5.5613,179.82,179.74,10.70062871]
[1730241793331,19.4606,179.85,179.75,10.70062871]
[1730241794713,19.4606,179.85,179.74,10.70062871]
[1730241795928,5.5601,179.85,179.74,10.70062871]
[1730241796139,5.5601,179.85,179.75,10.70062871]
[1730241799930,5.5601,179.85,179.74,34.47751271]
[1730241803550,5.5601,179.85,179.75,10.70062871]
[1730241806041,5.5601,179.85,179.74,34.47751271]
[1730241807459,5.5601,179.85,179.75,10.70062871]
[1730241809040,5.5601,179.86,179.77,10.70062871]
[1730241810772,5.5601,179.86,179.78,10.70062871]
[1730241812145,16.4324,179.87,179.78,10.70062871]
[1730241812350,5.79290689,179.89,179.8,10.70062871]
[1730241812642,16.0107,179.91,179.82,10.70062871]
[1730241812843,5.5577,179.93,179.82,10.70062871]
[1730241813060,5.5577,179.93,179.83,23.776884]
[1730241813456,16.0107,179.95,179.84,10.70062871]
[1730241813668,21.5678,179.95,179.85,23.776884]
[1730241814166,5.5571,179.95,179.86,33.53822871]
[1730241815150,1.60007695,180.04,179.88,10.70062871]
[1730241815364,16.1107,180.05,179.86,22.8376]
[1730241815561,5.5565,179.97,179.87,10.70062871]
[1730241815735,5.5565,179.97,179.88,23.776884]
[1730241816544,5.5565,179.97,179.88,10.70062871]
[1730241817342,5.5565,179.97,179.87,34.47751271]
[1730241817559,5.5561,179.98,179.88,10.70062871]
[1730241818361,5.5561,179.98,179.87,34.47751271]
[1730241819057,5.5565,179.97,179.87,34.47751271]
[1730241819367,5.5565,179.97,179.87,23.776884]
[1730241819759,5.5565,179.97,179.87,34.47751271]
[1730241820058,20.0,180.03,179.9,10.70062871]
[1730241820364,5.5553,180.01,179.92,23.776884]
[1730241821461,5.5549,180.02,179.93,10.70062871]
[1730241821655,13.94984626,180.12,179.95,54.60300271]
[1730241821836,5.5538,180.06,179.95,54.60300271]
[1730241822461,5.5524,180.1,179.99,10.70062871]
[1730241822845,5.5524,180.1,179.96,43.776884]
[1730241822846,5.5524,180.1,179.98,10.70062871]
[1730241823242,5.5524,180.1,179.99,10.70062871]
[1730241824364,5.5524,180.1,180.0,23.776884]
[1730241826363,5.5524,180.1,180.0,34.47751271]
[1730241826871,5.5524,180.1,180.0,23.776884]
[1730241827063,5.5524,180.1,179.99,23.776884]
[1730241827441,19.4315,180.12,179.99,34.47751271]
[1730241828051,19.4315,180.12,180.0,10.70062871]
[1730241828871,19.4315,180.12,179.99,23.776884]
[1730241828872,19.4315,180.12,179.99,34.47751271]
[1730241830544,19.4335,180.1,179.94,22.8376]
[1730241830845,19.4335,180.1,179.94,33.53822871]
[1730241831457,39.099284,180.09,179.94,22.8376]
[1730241832057,39.099284,180.09,179.95,20.0]
[1730241832449,19.4357,180.08,179.95,20.0]
[1730241835646,19.4357,180.08,179.94,22.8376]
[1730241835845,19.4357,180.08,179.91,23.902374]
[1730241836545,5.553,180.08,179.95,10.82611871]
[1730241836750,20.8753,180.09,179.99,34.47751271]
[1730241836969,20.8753,180.09,179.99,35.58812021]
[1730241837187,20.8753,180.09,179.99,24.8874915]
[1730241839887,34.7572,180.09,179.98,6.0178]
[1730241840089,34.7572,180.09,179.97,15.1565]
[1730241842268,34.7572,180.09,179.98,23.776884]
[1730241847687,34.7572,180.09,179.95,23.776884]
[1730241849585,23.776884,180.08,179.93,15.4694]
[1730241849896,6.1667,180.07,179.93,15.4694]
[1730241850192,16.1253,180.06,179.9,6.1371]
[1730241850397,23.776884,180.05,179.9,6.1371]
[1730241850573,20.0,180.04,179.9,6.1371]
[1730241851584,19.4411,180.03,179.9,6.1371]
[1730241852467,19.4411,180.03,179.91,23.776884]
[1730241854497,25.22520102,180.03,179.91,23.776884]
[1730241866100,19.4433,180.01,179.89,15.4694]
[1730241875720,26.0061,180.01,179.89,15.4694]
[1730241881122,23.776884,180.0,179.87,6.4929]
[1730241881608,29.5621218,180.0,179.87,6.4929]
[1730241882135,19.4454,179.99,179.87,6.4929]
[1730241892023,19.4454,179.99,179.89,10.70062871]
[1730241892024,5.5558,179.99,179.89,10.70062871]
[1730241892937,5.5555,180.0,179.89,10.70062871]
[1730241893432,5.5553,180.01,179.91,23.776884]
[1730241894410,5.5553,180.01,179.91,34.47751271]
[1730241894633,5.5553,180.01,179.91,49.60331271]
[1730241894827,15.7897,180.02,179.93,23.776884]
[1730241894828,21.3448,180.02,179.93,23.776884]
[1730241900041,5.5546,180.03,179.95,10.70062871]
[1730241900943,15.0105,180.06,179.95,10.70062871]
[1730241901117,5.554,180.05,179.95,10.70062871]
[1730241901649,5.554,180.05,179.94,30.70062871]
[1730241901827,5.554,180.05,179.95,23.776884]
[1730241902348,5.554,180.05,179.94,20.0]
[1730241902651,5.554,180.05,179.93,6.4878]
[1730241902947,19.439,180.05,179.91,15.1258]
[1730241909835,30.338784,180.04,179.91,15.1258]
[1730241910146,15.0105,180.03,179.89,6.4878]
[1730241910531,23.776884,180.02,179.87,15.6474]
[1730241910748,6.5619,179.99,179.85,6.4878]
[1730241911852,15.0105,180.01,179.9,10.70062871]
[1730241912044,20.5658,180.01,179.91,10.70062871]
[1730241912432,20.5658,180.01,179.91,23.776884]
[1730241913226,20.5658,180.01,179.9,23.776884]
[1730241914148,6.5619,179.99,179.85,6.4878]
[1730241914328,20.0,179.98,179.85,6.4878]
[1730241915554,5.5564,179.97,179.85,6.4878]
[1730241915929,19.4476,179.97,179.85,6.4878]
[1730241918551,13.8912,179.97,179.85,6.4878]
[1730241920170,13.8912,179.97,179.86,23.776884]
[1730241920536,13.8912,179.97,179.86,34.47751271]
[1730241921065,13.8912,179.97,179.86,23.776884]
[1730241923534,5.5559,179.99,179.91,10.70062871]
[1730241923738,20.80910944,180.01,179.91,10.70062871]
[1730241923739,26.36440944,180.01,179.91,23.776884]
[1730241923939,20.5658,180.01,179.91,23.776884]
[1730241926155,20.5658,180.01,179.9,23.776884]
[1730241930556,34.4539,180.01,179.9,23.776884]
[1730241930755,34.4539,180.01,179.89,15.7377]
[1730241934258,20.0,180.0,179.89,15.7377]
[1730241934454,5.5558,179.99,179.89,15.7377]
[1730241934664,19.4454,179.99,179.89,15.7377]
[1730241936066,5.5558,179.99,179.92,23.776884]
[1730241936263,5.5543,180.04,179.94,10.70062871]
[1730241936466,5.78991418,180.03,179.95,23.776884]
[1730241936672,5.5543,180.04,179.95,23.776884]
[1730241938852,5.553,180.08,179.98,10.70062871]
[1730241939072,5.553,180.08,180.0,23.776884]
[1730241939379,5.553,180.08,179.99,23.776884]
[1730241939557,5.553,180.08,179.97,23.776884]
[1730241939558,5.553,180.08,179.97,34.47751271]
[1730241939956,5.5527,180.09,179.97,34.47751271]
[1730241940269,5.5527,180.09,179.97,23.776884]
[1730241940472,19.4346,180.09,179.97,23.776884]
[1730241940781,20.0,180.08,179.96,16.0075]
[1730241941275,20.0,180.08,179.97,23.776884]
[1730241941976,5.5527,180.09,179.99,23.776884]
[1730241942391,5.5527,180.09,179.98,23.776884]
[1730241942682,19.4346,180.09,179.97,23.776884]
[1730241948066,19.4346,180.09,179.97,34.47751271]
[1730241950169,19.4346,180.09,179.97,23.776884]
[1730241952964,19.4346,180.09,179.92,21.4126]
[1730241952965,6.2916,180.07,179.92,21.4126]
[1730241953173,6.2916,180.07,179.93,20.0]
[1730241953399,6.2916,180.07,179.93,30.70062871]
[1730241953767,6.2916,180.07,179.93,20.0]
[1730241954175,19.4379,180.06,179.93,30.70062871]
[1730241954369,19.4379,180.06,179.94,23.776884]
[1730241957095,19.4379,180.06,179.94,34.47751271]
[1730241957386,5.5537,180.06,179.96,34.47751271]
[1730241958302,20.0,180.08,179.96,34.47751271]
[1730241958472,5.5533,180.07,179.96,23.776884]
[1730241960374,5.5533,180.07,179.95,43.776884]
[1730241962071,5.5533,180.07,179.95,54.47751271]
[1730241962296,5.5533,180.07,179.95,43.776884]
[1730241962493,19.4367,180.07,179.95,43.776884]
[1730241962668,19.4367,180.07,179.95,23.776884]
[1730241963289,36.0456,180.06,179.93,20.0]
[1730241963496,36.0456,180.06,179.92,21.4126]
[1730241963674,6.6554,180.05,179.92,21.4126]
[1730241963990,39.4401,180.04,179.88,21.0985]
[1730241965078,67.2117,180.04,179.89,20.0]
[1730241965787,67.2117,180.04,179.91,20.0]
[1730241966188,39.4401,180.04,179.92,23.776884]
[1730241966682,39.4401,180.04,179.92,34.47751271]
[1730241967201,39.4401,180.04,179.92,23.776884]
[1730241971386,39.4401,180.04,179.92,34.47751271]
[1730241971598,5.5543,180.04,179.94,34.47751271]
[1730241971897,5.5543,180.04,179.95,23.776884]
[1730241972606,5.5543,180.04,179.94,23.776884]
[1730241973301,5.5541,180.05,179.94,55.57601271]
[1730241973502,5.5541,180.05,179.94,44.875384]
[1730241973805,19.4391,180.05,179.94,44.875384]
[1730241978982,19.4391,180.05,179.94,55.57601271]
[1730241979606,19.4391,180.05,179.94,44.875384]
[1730241980600,19.4391,180.05,179.94,55.57601271]
[1730241981301,19.4391,180.05,179.94,44.875384]
[1730241981498,19.4391,180.05,179.94,55.57601271]
[1730241982199,19.4391,180.05,179.94,44.875384]
[1730241983207,19.4391,180.05,179.9,6.0195]
[1730241983208,20.0,180.04,179.9,6.0195]
[1730241983385,20.0,180.04,179.9,16.72012871]
[1730241984208,20.0,180.04,179.91,10.70062871]
[1730241984402,5.5546,180.03,179.94,34.47751271]
[1730241984607,5.554,180.05,179.96,23.776884]
[1730241985111,19.439,180.05,179.91,20.0]
[1730241986283,47.209,180.05,179.91,20.0]
[1730241986489,47.209,180.05,179.92,23.776884]
[1730241994101,19.439,180.05,179.92,23.776884]
[1730241994713,6.3376,180.04,179.87,5.79375611]
[1730241994918,43.776884,180.03,179.87,5.79375611]
[1730241995124,43.776884,180.03,179.86,10.70062871]
[1730241995294,43.776884,180.0,179.84,28.50523169]
[1730241995496,20.0,180.0,179.87,10.70062871]
[1730241995699,20.0,180.0,179.86,10.70062871]
[1730241995918,5.5558,179.99,179.86,10.70062871]
[1730241997516,5.5558,179.99,179.87,23.776884]
[1730241998017,5.5558,179.99,179.86,43.776884]
[1730242000329,5.5558,179.99,179.86,54.47751271]
[1730242001715,5.5558,179.99,179.87,10.70062871]
[1730242001901,5.5558,179.99,179.9,23.776884]
[1730242003011,5.5555,180.0,179.89,23.776884]
[1730242004320,5.5555,180.0,179.9,30.70062871]
[1730242004522,5.5555,180.0,179.91,23.776884]
[1730242004705,5.5555,180.0,179.91,56.83281271]
[1730242004900,5.5555,180.0,179.92,10.70062871]
[1730242005101,5.5555,180.0,179.93,23.776884]
[1730242005420,16.6158,180.01,179.93,23.776884]
[1730242005614,22.171,180.01,179.93,23.776884]
[1730242005948,5.5552,180.01,179.94,23.776884]
[1730242006306,5.5543,180.04,179.94,23.776884]
[1730242006501,5.5543,180.04,179.93,23.776884]
[1730242010729,5.5543,180.04,179.92,23.776884]
[1730242010934,19.4401,180.04,179.92,23.776884]
[1730242011606,19.4401,180.04,179.92,34.47751271]
[1730242012634,5.5543,180.04,179.94,23.776884]
[1730242012849,5.5543,180.04,179.94,10.70062871]
[1730242013135,5.5527,180.09,179.98,23.776884]
[1730242013634,5.5527,180.09,179.98,34.47751271]
[1730242014034,5.5527,180.09,179.98,23.776884]
[1730242014923,5.5527,180.09,179.97,23.776884]
[1730242016115,5.5527,180.09,179.96,23.776884]
[1730242016515,19.4346,180.09,179.96,23.776884]
[1730242017538,47.1984,180.09,179.91,22.3553]
[1730242017834,20.0,180.08,179.92,34.47751271]
[1730242018017,16.1847,180.06,179.92,34.47751271]
[1730242018221,20.0,180.05,179.92,23.776884]
[1730242019046,20.0,180.05,179.92,34.47751271]
[1730242019211,5.5543,180.04,179.92,34.47751271]
[1730242021025,5.5543,180.04,179.95,23.776884]
[1730242021222,5.554,180.05,179.95,23.776884]
[1730242021747,5.554,180.05,179.94,23.776884]
[1730242022048,5.554,180.05,179.96,23.776884]
[1730242023239,19.439,180.05,179.92,20.0]
[1730242023447,26.0604,180.05,179.92,20.0]
[1730242024730,26.0604,180.05,179.93,23.776884]
[1730242025439,20.0,180.04,179.92,23.776884]
[1730242026642,5.5546,180.03,179.92,23.776884]
[1730242026834,20.0,180.0,179.87,21.5671]
[1730242028127,5.5558,179.99,179.87,21.5671]
[1730242028344,5.5558,179.99,179.88,23.776884]
[1730242028544,5.5558,179.99,179.87,21.5671]
[1730242028856,5.5558,179.99,179.84,20.0]
[1730242028857,6.6214,179.98,179.84,20.0]
[1730242029156,20.0,179.97,179.83,21.5671]
[1730242029357,15.1337,179.96,179.83,21.5671]
[1730242029531,20.0,179.95,179.83,21.5671]
[1730242029731,20.0,179.95,179.8,4.68522623]
[1730242030359,20.0,179.93,179.8,4.68522623]
[1730242031053,20.0,179.93,179.8,23.776884]
[1730242031225,5.5574,179.94,179.83,10.70062871]
[1730242031428,5.5574,179.94,179.85,23.776884]
[1730242031856,5.5574,179.94,179.84,23.776884]
[1730242032027,5.5574,179.94,179.83,23.776884]
[1730242032224,25.557,179.95,179.82,23.776884]
[1730242032926,25.557,179.95,179.81,10.70062871]
[1730242032927,39.4497,179.95,179.8,23.776884]
[1730242033143,39.4497,179.95,179.81,23.776884]
[1730242033669,39.4497,179.95,179.8,20.0]
[1730242033834,39.4497,179.95,179.8,30.70062871]
[1730242034245,25.557,179.95,179.83,10.70062871]
[1730242034858,25.557,179.95,179.84,23.776884]
[1730242035450,25.557,179.95,179.83,23.776884]
[1730242037460,5.557,179.95,179.83,34.47751271]
[1730242038027,5.557,179.95,179.86,10.70062871]
[1730242038232,15.1337,179.96,179.87,10.70062871]
[1730242038233,20.6905,179.96,179.87,10.70062871]
[1730242038433,20.6905,179.96,179.87,23.776884]
[1730242039371,5.79087369,179.98,179.9,10.70062871]
[1730242039675,5.5559,179.99,179.91,23.776884]
[1730242040838,5.5559,179.99,179.9,23.776884]
[1730242042853,5.5559,179.99,179.9,40.46108093]
[1730242043058,19.4455,179.99,179.86,22.0022]
[1730242043959,20.0,179.98,179.86,22.0022]
[1730242044159,19.4476,179.97,179.86,15.4586]
[1730242044462,19.4476,179.97,179.83,16.68419693]
[1730242045362,19.4476,179.97,179.82,38.68639693]
[1730242045567,6.4003,179.96,179.82,22.0022]
[1730242045863,6.4003,179.96,179.83,23.776884]
[1730242046066,6.4003,179.96,179.82,38.68639693]
[1730242046067,5.557,179.95,179.85,23.776884]
[1730242048663,5.5558,179.99,179.88,16.68419693]
[1730242048839,5.5558,179.99,179.87,23.776884]
[1730242051266,5.5558,179.99,179.87,40.46108093]
[1730242052267,5.5558,179.99,179.88,16.68419693]
[1730242052442,5.5558,179.99,179.89,23.776884]
[1730242052946,5.5558,179.99,179.87,40.46108093]
[1730242053145,5.5558,179.99,179.87,23.776884]
[1730242053570,5.5558,179.99,179.87,40.46108093]
[1730242053943,5.5558,179.99,179.87,23.776884]
[1730242054756,20.0,179.98,179.82,22.0022]
[1730242054945,20.0,179.98,179.83,20.0]
[1730242055557,20.0,179.98,179.83,36.68419693]
[1730242056074,19.4476,179.97,179.83,36.68419693]
[1730242056289,19.4476,179.97,179.84,23.776884]
[1730242056972,19.4476,179.97,179.84,40.46108093]
[1730242057960,19.4476,179.97,179.85,16.68419693]
[1730242058353,19.4476,179.97,179.86,23.776884]
[1730242058563,19.4476,179.97,179.86,40.46108093]
[1730242058873,5.5564,179.97,179.88,23.776884]
[1730242059469,5.5564,179.97,179.87,23.776884]
[1730242059666,20.0,179.99,179.87,23.776884]
[1730242059859,39.4454,179.99,179.86,43.776884]
[1730242065053,19.4454,179.99,179.88,23.776884]
[1730242067866,19.4454,179.99,179.87,23.776884]
[1730242068775,19.4454,179.99,179.87,40.46108093]
[1730242069373,19.4454,179.99,179.87,23.776884]
[1730242069885,5.5546,180.03,179.89,16.68419693]
[1730242070175,5.79226507,180.03,179.99,40.46108093]
[1730242070382,5.79226507,180.03,180.0,36.68419693]
[1730242070560,20.6129,180.11,180.01,23.776884]
[1730242072581,20.6129,180.11,180.01,40.46108093]
[1730242073763,20.6129,180.11,180.02,16.68419693]
[1730242079093,5.5515,180.13,180.04,23.776884]
[1730242079387,5.5515,180.13,180.04,40.46108093]
[1730242080886,5.5515,180.13,180.04,23.776884]
[1730242082071,20.0,180.17,180.04,23.776884]
[1730242082292,0.96444631,180.23,180.08,16.68419693]
[1730242082593,3.24,180.25,180.12,16.68419693]
[1730242082794,5.78120186,180.25,180.12,16.68419693]
[1730242083102,5.78120186,180.25,180.1,16.68419693]
[1730242083405,5.78120186,180.25,180.12,16.68419693]
[1730242083596,5.5481,180.24,180.14,40.46108093]
[1730242084090,5.5472,180.27,180.14,40.46108093]
[1730242084296,19.4152,180.27,180.12,16.68419693]
[1730242084484,19.4152,180.27,180.12,20.0]
[1730242084798,20.0,180.26,180.11,22.9043]
[1730242085388,20.0,180.26,180.11,39.58849693]
[1730242085592,20.0,180.26,180.12,40.46108093]
[1730242085780,20.0,180.24,180.12,40.46108093]
[1730242086895,20.0,180.24,180.14,23.776884]
[1730242087990,25.5475,180.26,180.13,23.776884]
[1730242088194,25.5475,180.26,180.13,40.46108093]
[1730242088800,13.868,180.27,180.15,16.68419693]
[1730242088982,19.4152,180.27,180.16,23.776884]
[1730242089674,19.4152,180.27,180.14,43.776884]
[1730242090292,20.0,180.26,180.12,16.68419693]
[1730242090575,20.0,180.26,180.13,23.776884]
[1730242091087,20.0,180.24,180.13,23.776884]
[1730242092394,20.0,180.24,180.12,23.776884]
[1730242092598,22.15063168,180.28,180.11,22.9043]
[1730242092599,19.4195,180.23,180.11,22.9043]
[1730242093575,23.776884,180.26,180.11,22.9043]
[1730242093874,20.0,180.25,180.11,22.9043]
[1730242094091,20.0,180.25,180.11,39.58849693]
[1730242094302,25.78684905,180.25,180.11,39.58849693]
[1730242094797,19.4184,180.24,180.11,39.58849693]
[1730242094998,20.0,180.23,180.11,22.9043]
[1730242096494,19.4206,180.22,180.12,40.46108093]
[1730242097081,19.4206,180.22,180.12,23.776884]
[1730242097292,42.9327,180.21,180.07,16.68419693]
[1730242097891,42.9327,180.21,180.08,16.68419693]
[1730242098496,5.5493,180.2,180.09,16.68419693]
[1730242098891,19.4227,180.2,180.09,16.68419693]
[1730242099987,19.4227,180.2,180.08,16.68419693]
[1730242100192,19.4227,180.2,180.09,23.776884]
[1730242102413,19.4227,180.2,180.09,40.46108093]
[1730242102708,5.5493,180.2,180.12,16.68419693]
[1730242102912,5.5493,180.2,180.11,23.776884]
[1730242104689,19.4227,180.2,180.09,23.776884]